[Event "SWVG Arnold Classic Prestige All 2019"]
[Site "Sandton"]
[Date "2019.05.19"]
[Round "9.3"]
[White "Mabusela, Johannes Manyedi"]
[Black "Oatlhotse, Providence"]
[Result "1-0"]
[ECO "E42"]
[WhiteElo "2220"]
[BlackElo "2289"]
[Annotator "RC"]
[PlyCount "101"]
[EventDate "2019.05.18"]
[EventType "swiss"]
[EventCountry "RSA"]
[SourceTitle "playchess.com"]
[Source "ChessBase"]
[SourceQuality "1"]
[TimeControl "1500+10"]

1. d4 {[%emt 0:00:00]} Nf6 {[%emt 0:00:00]} 2. c4 {[%emt 0:00:00]} e6 {[%emt 0:00:00]} 3. Nc3 {[%emt 0:00:00]} Bb4 {[%emt 0:00:00]} 4. e3 {[%emt 0:00:00]} c5 {[%emt 0:00:00]} 5. Nge2 {[%emt 0:00:04]} d5 {[%emt 0:00:00]} 6. a3 {[%emt 0:00:04]} Bxc3+ {[%emt 0:00:00]} 7. Nxc3 {[%emt 0:00:07]} cxd4 {[%emt 0:00:00]} 8. exd4 {[%emt 0:00:01]} dxc4 {[%emt 0:00:05]} 9. Bxc4 {[%emt 0:00:02]} O-O {[%emt 0:00:08]} 10. O-O {[%emt 0:00:24]} a6 {[%emt 0:00:30]} 11. d5 {[%emt 0:01:37]} b5 {[%emt 0:02:01]} 12. Ba2 {[%emt 0:01:12]} exd5 {[%emt 0:00:07]} 13. Nxd5 {[%emt 0:00:58]} Bb7 {[%emt 0:00:29]} 14. Nc3 {[%emt 0:00:35]} Nbd7 {[%emt 0:00:36]} 15. Bf4 {[%emt 0:00:49]} Rc8 {[%emt 0:00:19]} 16. Bd6 {[%emt 0:00:51]} Re8 {[%emt 0:00:09]} 17. Qd4 {[%emt 0:21:06]} Qb6 {[%emt 0:00:59]} 18. Rad1 {[%emt 0:00:00]} Qc6 {[%emt 0:00:58]} 19. f3 {[%emt 0:00:00]} h6 {[%emt 0:01:08]} 20. Rfe1 {[%emt 0:00:00]} Qb6 {[%emt 0:01:40]} 21. Qxb6 {[%emt 0:00:00]} Nxb6 {[%emt 0:00:03]} 22. Kf2 {[%emt 0:00:00]} Nc4 {[%emt 0:02:00]} 23. Bxc4 {[%emt 0:00:00]} Rxc4 {[%emt 0:00:04]} 24. Rxe8+ {[%emt 0:00:00]} Nxe8 {[%emt 0:00:02]} 25. Bb4 {[%emt 0:00:00]} Nf6 {[%emt 0:00:59]} 26. Be7 {[%emt 0:00:00]} Ne8 {[%emt 0:03:00]} 27. Rd8 {[%emt 0:00:00]} Rc8 {[%emt 0:00:03]} 28. Rxc8 {[%emt 0:00:00]} Bxc8 {[%emt 0:00:01]} 29. Ke3 {[%emt 0:00:00]} f5 {[%emt 0:00:58]} 30. Kd4 {[%emt 0:00:00]} Kf7 {[%emt 0:00:06]} 31. Nd5 {[%emt 0:00:00]} Bb7 {[%emt 0:01:39]} 32. Bb4 {[%emt 0:00:00]} Ke6 {[%emt 0:03:51]} 33. Nf4+ {[%emt 0:00:00]} Kf6 {[%emt 0:00:03]} 34. Kc5 {[%emt 0:00:00]} g5 {[%emt 0:00:10]} 35. Bc3+ {[%emt 0:00:00]} Kf7 {[%emt 0:01:16]} 36. Kb6 {[%emt 0:00:00]} Bc8 {[%emt 0:05:49]} 37. Nd5 {[%emt 0:00:00]} Ke6 {[%emt 0:01:02]} 38. Nb4 {[%emt 0:00:00]} Nd6 {[%emt 0:00:48]} 39. Nxa6 {[%emt 0:00:00]} Bd7 {[%emt 0:00:13]} 40. Nc7+ {[%emt 0:00:00]} Kf7 {[%emt 0:00:06]} 41. Kc5 {[%emt 0:00:00]} Ke7 {[%emt 0:00:12]} 42. Bf6+ {[%emt 0:00:00]} Kxf6 {[%emt 0:00:09]} 43. Kxd6 {[%emt 0:00:00]} Bc8 {[%emt 0:00:05]} 44. Nxb5 {[%emt 0:00:00]} g4 {[%emt 0:00:18]} 45. f4 {[%emt 0:00:00]} g3 {[%emt 0:00:07]} 46. hxg3 {[%emt 0:00:00]} Kg6 {[%emt 0:00:10]} 47. Nd4 {[%emt 0:00:00]} Kh5 {[%emt 0:00:01]} 48. Kc7 {[%emt 0:00:00]} Ba6 {[%emt 0:00:07]} 49. Nxf5 {[%emt 0:00:00]} Kg4 {[%emt 0:00:26]} 50. Nxh6+ {[%emt 0:00:00]} Kxg3 {[%emt 0:00:01]} 51. f5 {[%emt 0:00:00]} 1-0

[Event "SWVG Arnold Classic Prestige All 2019"]
[Site "Sandton"]
[Date "2019.05.19"]
[Round "9.4"]
[White "Sithole, Collins"]
[Black "Mnguni, Jacob Dumisani"]
[Result "0-1"]
[ECO "D45"]
[WhiteElo "1861"]
[BlackElo "2141"]
[Annotator "NA RC"]
[PlyCount "130"]
[EventDate "2019.05.18"]
[EventType "swiss"]
[EventCountry "RSA"]
[SourceTitle "playchess.com"]
[Source "ChessBase"]
[SourceQuality "1"]
[TimeControl "1500+10"]

1. c4 {[%emt 0:00:06]} c6 {[%emt 0:00:00]} 2. d4 {[%emt 0:00:10]} d5 {[%emt 0:00:00]} 3. e3 {[%emt 0:00:37]} Nf6 {[%emt 0:00:02]} 4. Nf3 {[%emt 0:00:05]} a6 {[%emt 0:00:02]} 5. Nc3 {[%emt 0:00:39]} e6 {[%emt 0:00:12]} 6. b3 {[%emt 0:00:56] D45: Semi-Slav: 5 e3} (6. Qc2 dxc4 7. Bxc4 b5 8. Be2 Bb7 9. a3 Nbd7 10. b4 a5 11. Rb1 axb4 12. axb4 Nd5 13. Nxd5 exd5 14. O-O Nf6 15. Ne5 {1-0 (39) So,W (2780)-Vallejo Pons,F (2707) Leon 2018}) 6... Nbd7 {[%emt 0:00:35]} 7. Bb2 {[%emt 0:00:31]} b5 {[%emt 0:00:34]} 8. cxd5 {[%emt 0:00:14]} cxd5 {[%emt 0:00:03]} 9. Bd3 {[%emt 0:00:06]} Bb7 {[%emt 0:00:02]} 10. O-O {[%emt 0:00:04]} Be7 {[%emt 0:00:10]} 11. Rc1 {[%emt 0:00:14]} O-O {[%emt 0:00:05]} 12. Bb1 $146 {[%emt 0:00:43]} ({Predecessor:} 12. Re1 Ne4 13. Ne5 {0-1 (43) Struben,J (1733)-Broday,G (2054) Montreal 2015}) 12... Rc8 {[%emt 0:00:28]} 13. Qd3 {[%emt 0:00:16]} Ne4 {[%emt 0:00:03]} 14. Ne2 {[%emt 0:00:18]} Qa5 {[%emt 0:00:31]} 15. Rfd1 {[%emt 0:01:23]} Ba3 {[%emt 0:01:06]} 16. Bxa3 {[%emt 0:01:18]} Qxa3 {[%emt 0:00:03]} 17. Ne1 {[%emt 0:00:16]} g6 {[%emt 0:00:50]} 18. f3 {[%emt 0:00:16]} Nd6 {[%emt 0:00:38]} 19. Qd2 {[%emt 0:00:13]} Kg7 {[%emt 0:01:55]} 20. Nc2 {[%emt 0:01:08]} Qb2 {[%emt 0:00:02]} 21. Nf4 {[%emt 0:00:38]} Qc3 {[%emt 0:00:07]} 22. Qf2 {[%emt 0:01:38]} Qa5 {[%emt 0:00:53]} 23. Ne1 {[%emt 0:00:31]} b4 {[%emt 0:00:56]} 24. Qg3 {[%emt 0:00:29]} Qb6 {[%emt 0:01:18]} 25. Rc2 {[%emt 0:00:53]} Rxc2 {[%emt 0:00:06]} 26. Nxc2 {[%emt 0:00:15]} Nf5 {[%emt 0:00:07]} 27. Qe1 {[%emt 0:00:06]} a5 {[%emt 0:00:10]} 28. g4 {[%emt 0:00:02]} Nd6 {[%emt 0:00:16]} 29. h4 {[%emt 0:00:10]} h6 {[%emt 0:01:33]} 30. Rd2 {[%emt 0:00:05]} Rc8 {[%emt 0:00:09]} 31. Rg2 {[%emt 0:00:33]} Rc3 {[%emt 0:00:23]} 32. Qg3 {[%emt 0:00:28]} Qc7 {[%emt 0:00:35]} 33. Ne2 {[%emt 0:01:56]} Rc6 {[%emt 0:00:15]} 34. Ne1 {[%emt 0:00:14]} Nb5 {[%emt 0:00:23]} 35. Nf4 {[%emt 0:01:14]} Nc3 {[%emt 0:00:21]} 36. Bd3 {[%emt 0:00:05]} e5 {[%emt 0:00:13]} 37. Nh3 {[%emt 0:03:46]} e4 {[%emt 0:00:29]} 38. Qxc7 {[%emt 0:00:13]} Rxc7 {[%emt 0:00:02]} 39. fxe4 {[%emt 0:00:02]} dxe4 {[%emt 0:00:01]} 40. Bc4 {[%emt 0:00:21]} Nb6 {[%emt 0:00:01]} 41. Bf1 {[%emt 0:02:57]} Nbd5 {[%emt 0:00:07]} 42. Rd2 {[%emt 0:00:50]} Nxe3 {[%emt 0:00:11]} 43. g5 {[%emt 0:00:55]} hxg5 {[%emt 0:00:21]} 44. Nxg5 {[%emt 0:00:27]} Nf5 {[%emt 0:00:19]} 45. Bc4 {[%emt 0:00:30]} Rd7 {[%emt 0:01:09]} 46. h5 {[%emt 0:00:27]} gxh5 {[%emt 0:00:05]} 47. Rg2 {[%emt 0:00:17]} Kf6 {[%emt 0:04:55]} 48. Nh7+ {[%emt 0:00:17]} Ke7 {[%emt 0:00:02]} 49. Rg5 {[%emt 0:00:08]} Nxd4 $19 {[%emt 0:00:15]} 50. Re5+ {[%emt 0:00:34]} Ne6 {[%emt 0:00:34]} 51. Rxa5 {[%emt 0:00:17]} h4 {[%emt 0:00:18]} 52. a4 {[%emt 0:00:19]} bxa3 {[%emt 0:00:14]} 53. Rxa3 {[%emt 0:00:01]} Bd5 {[%emt 0:00:31]} 54. Bxd5 {[%emt 0:01:01]} Nxd5 {[%emt 0:00:07]} 55. Ra4 {[%emt 0:00:11]} f5 {[%emt 0:00:11]} 56. Ra6 {[%emt 0:00:17]} f4 {[%emt 0:00:21]} 57. Kf2 {[%emt 0:00:45]} h3 {[%emt 0:00:07]} 58. Kg1 {[%emt 0:00:32]} f3 {[%emt 0:00:11]} 59. Ra2 {[%emt 0:00:29]} Kd6 {[%emt 0:00:15]} 60. Ra6+ {[%emt 0:00:05]} Ke5 {[%emt 0:00:06]} 61. Nf8 {[%emt 0:00:25]} Rg7+ {[%emt 0:00:04]} 62. Kh2 {[%emt 0:00:02]} Nxf8 {[%emt 0:00:10]} 63. Nxf3+ {[%emt 0:00:08]} exf3 {[%emt 0:00:04]} 64. Kxh3 {[%emt 0:00:03]} f2 {[%emt 0:00:18]} 65. Ra1 {[%emt 0:00:20]} Rg1 {[%emt 0:00:13]} 0-1

[Event "SWVG Arnold Classic Prestige All 2019"]
[Site "Sandton"]
[Date "2019.05.19"]
[Round "9.5"]
[White "Khumalo, Keith"]
[Black "Simutowe, Musatwe"]
[Result "1-0"]
[ECO "E09"]
[WhiteElo "2086"]
[BlackElo "2170"]
[Annotator "NA RC"]
[PlyCount "89"]
[EventDate "2019.05.18"]
[EventType "swiss"]
[EventCountry "RSA"]
[SourceTitle "playchess.com"]
[Source "ChessBase"]
[SourceQuality "1"]
[TimeControl "1500+10"]

1. d4 {[%emt 0:00:00]} d5 {[%emt 0:02:07]} 2. c4 {[%emt 0:00:00]} c6 {[%emt 0:00:05]} 3. Nf3 {[%emt 0:00:00]} Nf6 {[%emt 0:00:01]} 4. Qc2 {[%emt 0:00:00]} e6 {[%emt 0:00:13]} 5. Nbd2 {[%emt 0:00:00]} Nbd7 {[%emt 0:00:06]} 6. g3 {[%emt 0:00:02]} Be7 {[%emt 0:00:06]} 7. Bg2 {[%emt 0:00:02]} O-O {[%emt 0:00:02]} 8. O-O {[%emt 0:00:02]} b6 {[%emt 0:00:00]} 9. e4 {[%emt 0:26:24]} Bb7 10. Rd1 {[%emt 0:00:00]} Rc8 {[%emt 0:00:03]} 11. e5 {[%emt 0:00:00]} Ne8 {[%emt 0:00:01]} 12. b3 {[%emt 0:00:00]} Nc7 {[%emt 0:00:13]} 13. Bb2 {[%emt 0:00:00]} c5 {[%emt 0:00:01]} 14. dxc5 {[%emt 0:00:00]} Nxc5 {[%emt 0:00:10]} 15. Rac1 {[%emt 0:00:00] [#] E09: Closed Catalan: Main Line: 7 Qc2 c6 8 Nbd2} h6 $146 {[%emt 0:00:06]} ({Predecessor:} 15... dxc4 16. Nxc4 Nd5 17. Qe2 b5 18. Ne3 Qa5 19. Nxd5 Bxd5 20. Nd4 Bxg2 21. Kxg2 a6 22. Rc2 Qb6 {1-0 (57) Iljushin,A (2515)-Kharlov,A (2615) Samara 2000}) 16. Qb1 {[%emt 0:00:00]} Qe8 {[%emt 0:00:02]} 17. h4 {[%emt 0:00:00]} b5 {[%emt 0:00:01]} 18. b4 {[%emt 0:00:00]} Na4 {[%emt 0:00:01]} 19. c5 {[%emt 0:00:00]} Nxb2 {[%emt 0:00:03]} 20. Qxb2 {[%emt 0:00:00]} Na6 {[%emt 0:00:11]} 21. a3 {[%emt 0:00:00]} Nb8 {[%emt 0:00:01]} 22. Nd4 {[%emt 0:00:00]} a6 {[%emt 0:00:04]} 23. f4 {[%emt 0:00:00]} Nc6 {[%emt 0:00:02]} 24. N2f3 {[%emt 0:00:00]} Qd7 {[%emt 0:00:11]} 25. Bh3 {[%emt 0:00:00]} Rce8 {[%emt 0:00:06]} 26. f5 {[%emt 0:00:00]} exf5 {[%emt 0:00:07]} 27. Nxf5 {[%emt 0:00:00]} Qc7 {[%emt 0:00:19]} 28. Rxd5 {[%emt 0:00:00]} Nxb4 {[%emt 0:00:11]} 29. Rd7 {[%emt 0:00:00]} Bxc5+ {[%emt 0:00:14]} 30. Kh2 {[%emt 0:00:00]} Qc6 {[%emt 0:00:07]} 31. axb4 {[%emt 0:00:00]} Qxf3 {[%emt 0:00:05]} 32. bxc5 {[%emt 0:00:00]} Rxe5 {[%emt 0:00:20]} 33. Nd4 {[%emt 0:00:00]} Qe4 {[%emt 0:01:49]} 34. Bg2 {[%emt 0:00:00]} Qxg2+ {[%emt 0:00:08]} 35. Qxg2 {[%emt 0:00:00]} Bxg2 {[%emt 0:00:01]} 36. Kxg2 {[%emt 0:00:00]} b4 {[%emt 0:00:15]} 37. c6 {[%emt 0:00:00]} Ree8 {[%emt 0:00:07]} 38. c7 {[%emt 0:00:00]} a5 {[%emt 0:00:02]} 39. Nc6 {[%emt 0:00:00]} Kh7 {[%emt 0:00:09]} 40. Rd8 {[%emt 0:00:00]} b3 {[%emt 0:00:12]} 41. c8=Q {[%emt 0:00:00]} b2 {[%emt 0:00:02]} 42. Rb1 {[%emt 0:00:00]} Re2+ {[%emt 0:00:09]} 43. Kh3 {[%emt 0:00:00]} Rxd8 {[%emt 0:00:07]} 44. Qxd8 {[%emt 0:00:00]} a4 {[%emt 0:00:02]} 45. Qd3+ {[%emt 0:00:00]} 1-0

[Event "SWVG Arnold Classic Prestige All 2019"]
[Site "Sandton"]
[Date "2019.05.19"]
[Round "9.6"]
[White "Masiya, Mfundo"]
[Black "Mwale, Joseph"]
[Result "1-0"]
[ECO "B14"]
[WhiteElo "1977"]
[BlackElo "2274"]
[Annotator "NA RC"]
[PlyCount "143"]
[EventDate "2019.05.18"]
[EventType "swiss"]
[EventCountry "RSA"]
[SourceTitle "playchess.com"]
[Source "ChessBase"]
[SourceQuality "1"]
[TimeControl "1500+10"]

1. e4 {[%emt 0:00:45]} c6 {[%emt 0:00:00]} 2. d4 {[%emt 0:00:02]} d5 {[%emt 0:00:00]} 3. exd5 {[%emt 0:00:01]} cxd5 {[%emt 0:00:00]} 4. c4 {[%emt 0:00:01]} Nf6 {[%emt 0:25:40]} 5. Nc3 {[%emt 0:25:01]} g6 {[%emt 0:00:00]} 6. cxd5 {[%emt 0:00:00]} Bg7 {[%emt 0:00:00]} 7. Qb3 {[%emt 0:00:00]} O-O {[%emt 0:00:00]} 8. Be2 {[%emt 0:00:00]} Nbd7 {[%emt 0:00:00]} 9. Bf3 {[%emt 0:00:00]} Nb6 {[%emt 0:00:00]} 10. Nge2 {[%emt 0:00:00]} Bf5 {[%emt 0:00:00]} 11. O-O {[%emt 0:00:00]} Bd3 {[%emt 0:00:00] [#]} 12. d6 $1 {[%emt 0:00:00] B14: Caro-Kann: Panov-Botvinnik Attack with 5...e6 and 5...g6} (12. Rd1 Bc4 13. Qc2 Nfxd5 14. Nf4 Rc8 15. Nd3 Nxc3 16. bxc3 Bd5 17. Bg4 e6 18. Nc5 Nd7 19. Ba3 Nxc5 20. Bxc5 {½-½ (38) Frolyanov,D (2610)-Lintchevski,D (2539) Olginka 2011}) 12... Qxd6 {[%emt 0:00:00]} 13. Bxb7 {[%emt 0:00:00]} Rad8 {[%emt 0:00:00]} 14. Bf4 {[%emt 0:00:00]} Qd7 {[%emt 0:00:00]} 15. Bf3 {[%emt 0:00:00]} Qf5 $146 {[%emt 0:00:00]} ({Predecessor:} 15... Bc4 16. Qa3 Nfd5 17. Bg3 Rc8 18. Rfd1 Rfd8 19. Rac1 e6 {½-½ (42) Veleski,R (2232)-Bogdanovski,V (2426) Struga 2014}) 16. Be5 {[%emt 0:00:00]} Nc4 {[%emt 0:00:00]} 17. Ng3 {[%emt 0:00:00]} Qg5 {[%emt 0:00:00]} 18. Bxf6 {[%emt 0:00:00]} Qxf6 {[%emt 0:00:00]} 19. Nd5 {[%emt 0:00:00]} Rxd5 {[%emt 0:00:00]} 20. Bxd5 {[%emt 0:00:00]} Bxf1 {[%emt 0:00:00]} 21. Nxf1 {[%emt 0:00:00]} Nb6 {[%emt 0:00:00]} 22. Rd1 {[%emt 0:00:00]} Rd8 {[%emt 0:00:00]} 23. Bc4 {[%emt 0:00:00]} e6 {[%emt 0:00:00]} 24. Ne3 {[%emt 0:00:00]} Rxd4 {[%emt 0:00:00]} 25. Bf1 {[%emt 0:00:00]} Rxd1 {[%emt 0:00:00]} 26. Nxd1 {[%emt 0:00:00]} Qd4 {[%emt 0:00:00]} 27. Nc3 {[%emt 0:00:00]} Qd2 {[%emt 0:00:00]} 28. Nd1 {[%emt 0:00:00]} Nd5 {[%emt 0:00:00]} 29. Qd3 {[%emt 0:00:00]} Qc1 {[%emt 0:00:00]} 30. b3 {[%emt 0:00:00]} Bf8 {[%emt 0:00:00]} 31. g3 {[%emt 0:00:00]} a5 {[%emt 0:00:00]} (31... Nb4 $5 {[%cal Rb4d3]} 32. Qd4 Bc5 $17) 32. h4 {[%emt 0:00:00]} Nb4 {[%emt 0:00:03]} 33. Qe2 {[%emt 0:00:00]} Qa1 {[%emt 0:00:03]} 34. a4 {[%emt 0:00:00]} Qb1 {[%emt 0:00:06]} 35. Qf3 {[%emt 0:00:00]} e5 {[%emt 0:00:34] [#]} 36. Bc4 $1 {[%emt 0:00:00]} Qf5 {[%emt 0:00:47]} 37. Qxf5 {[%emt 0:00:00]} gxf5 {[%emt 0:00:00]} 38. Ne3 {[%emt 0:00:00]} f4 {[%emt 0:00:11]} 39. gxf4 {[%emt 0:00:00]} exf4 {[%emt 0:00:00]} 40. Nf5 {[%emt 0:00:00]} Nc6 {[%emt 0:00:18]} 41. Kg2 {[%emt 0:00:00]} Ne5 {[%emt 0:00:13]} 42. f3 {[%emt 0:00:00]} Nxc4 {[%emt 0:01:29]} (42... h5 $11 {remains equal.} 43. Bd5 Bc5) 43. bxc4 {[%emt 0:00:00]} f6 {[%emt 0:00:01]} 44. Kf1 {[%emt 0:00:00]} Kf7 {[%emt 0:00:04]} 45. Nd4 $2 {[%emt 0:00:00]} (45. Ke2 $18) 45... Bc5 {[%emt 0:00:20]} 46. Nb3 {[%emt 0:00:00]} Bb6 {[%emt 0:00:51]} 47. Ke2 {[%emt 0:00:00]} Kg6 {[%emt 0:00:06]} 48. c5 {[%emt 0:00:00]} Bc7 {[%emt 0:00:45]} 49. Kd3 {[%emt 0:00:00]} Kh5 {[%emt 0:00:01] [#]} 50. Ke4 $2 {[%emt 0:00:00]} (50. Nxa5 $1 $18 {[%mdl 512]} Bxa5 51. Kc4) 50... Kxh4 {[%emt 0:00:04]} 51. Nd4 {[%emt 0:00:02]} Be5 {[%emt 0:00:34]} 52. Ne6 {[%emt 0:00:47]} Kg3 {[%emt 0:00:05]} 53. Ng7 {[%emt 0:02:56]} Kf2 {[%emt 0:00:49]} 54. c6 {[%emt 0:00:10]} h6 {[%emt 0:00:15]} 55. Nh5 {[%emt 0:00:24]} Bc7 {[%emt 0:00:37]} 56. Nxf6 {[%emt 0:00:05]} Bd8 $18 {[%emt 0:00:10]} 57. Nh5 {[%emt 0:00:05]} Ke2 {[%emt 0:00:10]} 58. Nxf4+ {[%emt 0:00:09]} Kd2 {[%emt 0:00:01]} 59. Ne6 {[%emt 0:01:01]} Bb6 {[%emt 0:00:02]} 60. c7 {[%emt 0:00:03]} Bxc7 {[%emt 0:00:01]} 61. Nxc7 {[%emt 0:00:01]} h5 {[%emt 0:00:02]} 62. Kf4 {[%emt 0:01:05]} h4 {[%emt 0:00:02]} 63. Kg4 {[%emt 0:00:05]} Ke3 {[%emt 0:00:05]} 64. Nd5+ {[%emt 0:00:11]} Kd4 {[%emt 0:00:01]} 65. Kxh4 {[%emt 0:00:02]} Kxd5 {[%emt 0:00:04]} 66. Kg5 {[%emt 0:00:02]} Ke6 {[%emt 0:00:01]} 67. Kg6 {[%emt 0:00:01]} Ke5 {[%emt 0:00:01]} 68. Kg5 {[%emt 0:00:02]} Ke6 {[%emt 0:00:02]} 69. f4 {[%emt 0:00:00]} Ke7 {[%emt 0:00:02]} 70. Kg6 {[%emt 0:00:02]} Ke6 {[%emt 0:00:02]} 71. f5+ {[%emt 0:00:01]} Ke7 {[%emt 0:00:01]} 72. Kg7 {[%emt 0:00:01]} 1-0

[Event "SWVG Arnold Classic Prestige All 2019"]
[Site "Sandton"]
[Date "2019.05.19"]
[Round "9.7"]
[White "Zwakala, Ntando"]
[Black "Mthunzi, Brighton"]
[Result "1-0"]
[ECO "D37"]
[WhiteElo "2088"]
[BlackElo "2006"]
[Annotator "NA RC"]
[PlyCount "78"]
[EventDate "2019.05.18"]
[EventType "swiss"]
[EventCountry "RSA"]
[SourceTitle "playchess.com"]
[Source "ChessBase"]
[SourceQuality "1"]
[TimeControl "1500+10"]

1. d4 {[%emt 0:00:00]} d5 {[%emt 0:00:00]} 2. c4 {[%emt 0:00:00]} e6 {[%emt 0:00:00]} 3. Nf3 {[%emt 0:00:00]} Be7 {[%emt 0:00:00]} 4. Nc3 {[%emt 0:00:00]} Nf6 {[%emt 0:00:11]} 5. Bf4 {[%emt 0:00:01]} O-O {[%emt 0:00:15]} 6. e3 {[%emt 0:00:04]} c5 {[%emt 0:00:17]} 7. dxc5 {[%emt 0:00:03]} Qa5 {[%emt 0:00:06]} 8. Qc2 {[%emt 0:00:32] D37: Queen's Gambit Declined: 5 Bf4} Qxc5 {[%emt 0:00:08]} 9. cxd5 $146 {[%emt 0:00:10]} ({Predecessor:} 9. Be2 dxc4 10. O-O Nc6 11. Na4 Qa5 12. Qxc4 Bd7 {½-½ (42) Andreikin,D (2689)-Matlakov,M (2632) Sochi 2012}) 9... Nxd5 {[%emt 0:00:08]} 10. Bd3 {[%emt 0:00:16]} h6 {[%emt 0:02:54]} 11. Nxd5 {[%emt 0:00:10]} Qxd5 {[%emt 0:00:46]} 12. O-O {[%emt 0:00:04]} Nc6 {[%emt 0:00:03]} 13. a3 {[%emt 0:00:03]} e5 {[%emt 0:01:28]} 14. Bc4 {[%emt 0:02:27]} Qd6 {[%emt 0:00:02]} 15. Bg3 {[%emt 0:00:11]} Bg4 {[%emt 0:00:18]} (15... Be6 $11 {remains equal.}) 16. b4 {[%emt 0:02:35]} Bxf3 {[%emt 0:00:13]} 17. gxf3 {[%emt 0:00:02]} Rac8 {[%emt 0:00:09]} 18. Qe4 {[%emt 0:00:30]} Bf6 {[%emt 0:01:44]} 19. Rad1 {[%emt 0:01:04]} Qe7 {[%emt 0:00:32]} 20. Rd5 {[%emt 0:00:57]} Rfd8 {[%emt 0:03:34]} 21. Rfd1 {[%emt 0:00:05]} Rxd5 {[%emt 0:00:16]} 22. Rxd5 {[%emt 0:00:04]} a6 {[%emt 0:00:55]} 23. Bb3 {[%emt 0:01:00]} h5 {[%emt 0:00:34]} 24. Qf5 {[%emt 0:00:11]} Rf8 {[%emt 0:01:04]} 25. Qxh5 {[%emt 0:00:37]} a5 {[%emt 0:00:08]} 26. Qg4 {[%emt 0:03:08]} axb4 {[%emt 0:00:10]} 27. axb4 {[%emt 0:00:01]} Qxb4 {[%emt 0:01:39]} 28. Qxb4 {[%emt 0:00:04]} Nxb4 {[%emt 0:00:02]} 29. Rb5 {[%emt 0:00:04]} Nc6 {[%emt 0:00:46]} 30. f4 {[%emt 0:01:51]} exf4 {[%emt 0:01:30]} 31. Bxf4 {[%emt 0:00:05]} Nd8 {[%emt 0:00:02]} 32. Bd5 {[%emt 0:00:38]} Re8 {[%emt 0:00:13]} 33. e4 {[%emt 0:00:36]} Be5 {[%emt 0:01:23]} 34. Be3 {[%emt 0:00:43]} Re7 {[%emt 0:00:35]} 35. f4 {[%emt 0:02:49]} Bc7 {[%emt 0:02:30]} 36. Kf2 {[%emt 0:01:49]} Kh7 {[%emt 0:01:11]} 37. e5 {[%emt 0:00:13]} g5 {[%emt 0:00:17]} 38. Be4+ {[%emt 0:00:47]} Kg7 {[%emt 0:00:15]} 39. fxg5 {[%emt 0:01:54]} Bxe5 $14 {[%emt 0:05:12]} 1-0

[Event "SWVG Arnold Classic Prestige All 2019"]
[Site "Sandton"]
[Date "2019.05.19"]
[Round "9.8"]
[White "Smit, Devon"]
[Black "Mpya, Tshediso M"]
[Result "1-0"]
[ECO "B11"]
[WhiteElo "1743"]
[BlackElo "1936"]
[Annotator "NA RC"]
[PlyCount "121"]
[EventDate "2019.05.18"]
[EventType "swiss"]
[EventCountry "RSA"]
[SourceTitle "playchess.com"]
[Source "ChessBase"]
[SourceQuality "1"]
[TimeControl "1500+10"]

1. e4 {[%emt 0:00:00]} c6 {[%emt 0:00:00]} 2. Nf3 {[%emt 0:00:00]} d5 {[%emt 0:00:00]} 3. Nc3 {[%emt 0:00:00]} Bg4 {[%emt 0:00:05]} 4. h3 {[%emt 0:00:00]} Bxf3 {[%emt 0:00:02]} 5. Qxf3 {[%emt 0:00:01]} e6 {[%emt 0:00:01]} 6. exd5 {[%emt 0:00:14]} cxd5 {[%emt 0:00:20]} 7. d4 {[%emt 0:00:18]} Nc6 {[%emt 0:00:10]} 8. Be3 {[%emt 0:00:14]} Qb6 {[%emt 0:00:17]} 9. Bb5 {[%emt 0:00:44]} a6 {[%emt 0:05:29]} 10. Bxc6+ {[%emt 0:00:07]} bxc6 {[%emt 0:00:02]} 11. Rb1 {[%emt 0:02:50]} Nf6 {[%emt 0:02:44]} 12. O-O {[%emt 0:00:26]} Be7 {[%emt 0:00:04]} 13. Ne2 {[%emt 0:00:33]} O-O {[%emt 0:00:57]} 14. Ng3 {[%emt 0:00:48]} h6 {[%emt 0:00:18]} 15. b3 {[%emt 0:01:21]} Qa5 {[%emt 0:01:21]} 16. a4 {[%emt 0:02:14]} Qc3 {[%emt 0:01:24]} 17. Ne2 {[%emt 0:01:06]} Qxc2 {[%emt 0:00:34]} 18. Rfc1 {[%emt 0:00:02]} Qg6 {[%emt 0:00:08]} 19. Nf4 {[%emt 0:00:04]} Qh7 {[%emt 0:01:01]} 20. Rb2 {[%emt 0:00:13]} Ba3 {[%emt 0:00:04]} 21. Rbc2 {[%emt 0:00:14]} Bxc1 {[%emt 0:00:03]} 22. Rxc1 {[%emt 0:00:01]} Rfc8 {[%emt 0:00:10]} 23. Bd2 {[%emt 0:00:24]} Qe4 {[%emt 0:00:10]} 24. Qg3 {[%emt 0:00:04]} Qf5 {[%emt 0:00:08]} 25. Nd3 {[%emt 0:00:15]} Ne4 {[%emt 0:00:22]} 26. Qe3 {[%emt 0:00:04]} Rab8 {[%emt 0:00:35]} 27. b4 {[%emt 0:00:21]} Nxd2 {[%emt 0:01:21]} 28. Qxd2 {[%emt 0:00:02]} f6 {[%emt 0:00:06]} 29. Nc5 {[%emt 0:00:20]} e5 {[%emt 0:00:42]} 30. Nxa6 {[%emt 0:01:00]} Rb6 {[%emt 0:00:02]} 31. Nc5 {[%emt 0:00:20]} Rcb8 {[%emt 0:00:06]} 32. g4 {[%emt 0:00:28]} Qc8 {[%emt 0:00:23]} 33. Rb1 {[%emt 0:00:40]} h5 {[%emt 0:01:01]} 34. f3 {[%emt 0:00:17]} Qc7 {[%emt 0:00:32]} 35. a5 {[%emt 0:00:11]} Rb5 {[%emt 0:00:29]} 36. Na6 {[%emt 0:00:13]} Qd6 {[%emt 0:00:16]} 37. Nxb8 {[%emt 0:00:03]} Qxb8 {[%emt 0:00:01]} 38. Kg2 {[%emt 0:00:39]} h4 {[%emt 0:00:01]} 39. Rb3 {[%emt 0:02:49]} exd4 {[%emt 0:00:34]} 40. f4 {[%emt 0:00:01]} c5 {[%emt 0:00:08]} 41. Kf3 {[%emt 0:00:31]} Rxb4 {[%emt 0:00:03]} 42. Rxb4 {[%emt 0:11:48]} Qe8 {[%emt 0:00:45]} 43. Rb6 {[%emt 0:00:00]} Qe4+ {[%emt 0:00:10]} 44. Kf2 {[%emt 0:00:00]} c4 {[%emt 0:00:07]} 45. a6 {[%emt 0:00:00]} c3 {[%emt 0:00:03]} 46. Qc1 {[%emt 0:00:00]} d3 {[%emt 0:00:18]} 47. a7 {[%emt 0:00:00]} d2 {[%emt 0:07:07]} 48. a8=Q+ {[%emt 0:00:00]} Kh7 {[%emt 0:00:02]} 49. Qb1 {[%emt 0:00:00]} c2 {[%emt 0:00:05]} 50. Qaa1 {[%emt 0:00:00]} Qxf4+ {[%emt 0:02:11]} 51. Ke2 {[%emt 0:00:00]} d1=Q+ {[%emt 0:00:16]} 52. Qxd1 {[%emt 0:00:00]} Qe4+ {[%emt 0:00:05]} 53. Kf2 {[%emt 0:00:00]} Qf4+ {[%emt 0:00:11]} 54. Qf3 {[%emt 0:00:00]} c1=Q {[%emt 0:00:03]} 55. Qxc1 {[%emt 0:00:00]} Qxc1 {[%emt 0:00:01]} 56. Qf5+ {[%emt 0:00:00]} Kg8 {[%emt 0:00:02]} 57. Rb8+ {[%emt 0:00:00]} Kf7 {[%emt 0:00:01]} 58. Qd7+ {[%emt 0:00:00]} Kg6 {[%emt 0:00:02]} 59. Qe8+ {[%emt 0:00:00]} Kg5 {[%emt 0:00:03]} 60. Qh5+ {[%emt 0:00:00]} Kf4 {[%emt 0:00:01]} 61. Qf5# {[%emt 0:00:00]} 1-0